[Event "Titled Tuesday Blitz March 28 Late 2023"]
[White "Villiers, Thomas"]
[Black "dDobravcan"]
[WhiteFideId "427209"]
[WhiteElo "2164"]
[BlackElo "2145"]
[Result "1-0"]
[Round "03"]
[TimeControl "180+2"]
[Date "2023.03.28"]
[WhiteClock "0:00:27"]
[BlackClock "0:00:02"]

1. d4 {[%clk 0:03:00]}  d6 {[%clk 0:02:58]} 2. Nf3 {[%clk 0:03:00]}  Bg4 {[%clk 0:02:55]} 3. e3 {[%clk 0:02:59]}  Nd7 {[%clk 0:02:52]} 4. h3 {[%clk 0:02:59]}  Bh5 {[%clk 0:02:51]} 5. b3 {[%clk 0:02:58]}  e5 {[%clk 0:02:50]} 6. Be2 {[%clk 0:02:55]}  e4 {[%clk 0:02:44]} 7. Nfd2 {[%clk 0:02:54]}  Bg6 {[%clk 0:02:43]} 8. c4 {[%clk 0:02:52]}  c6 {[%clk 0:02:41]} 9. Nc3 {[%clk 0:02:52]}  f5 {[%clk 0:02:40]} 10. Bb2 {[%clk 0:02:47]}  Ngf6 {[%clk 0:02:38]} 11. g4 {[%clk 0:02:41]}  d5 {[%clk 0:02:36]} 12. gxf5 {[%clk 0:02:41]}  Bxf5 {[%clk 0:02:35]} 13. Qc2 {[%clk 0:02:40]}  Be7 {[%clk 0:02:14]} 14. O-O-O {[%clk 0:02:40]}  O-O {[%clk 0:02:15]} 15. Rdg1 {[%clk 0:02:40]}  Kh8 {[%clk 0:02:12]} 16. h4 {[%clk 0:02:38]}  a5 {[%clk 0:02:04]} 17. h5 {[%clk 0:02:37]}  h6 {[%clk 0:01:58]} 18. Rg2 {[%clk 0:02:20]}  Nb6 {[%clk 0:01:50]} 19. Rhg1 {[%clk 0:02:20]}  Rf7 {[%clk 0:01:45]} 20. Nf1 {[%clk 0:02:10]}  Bf8 {[%clk 0:01:42]} 21. Ng3 {[%clk 0:02:10]}  Bh7 {[%clk 0:01:36]} 22. c5 {[%clk 0:02:10]}  Nc8 {[%clk 0:01:25]} 23. Qd1 {[%clk 0:02:08]}  b6 {[%clk 0:01:23]} 24. Na4 {[%clk 0:02:05]}  b5 {[%clk 0:01:20]} 25. Nc3 {[%clk 0:02:05]}  Na7 {[%clk 0:01:16]} 26. Nb1 {[%clk 0:02:04]}  b4 {[%clk 0:01:05]} 27. Bg4 {[%clk 0:02:00]}  Nb5 {[%clk 0:00:58]} 28. Bf5 {[%clk 0:01:59]}  a4 {[%clk 0:00:52]} 29. Bxh7 {[%clk 0:01:56]}  Nxh7 {[%clk 0:00:50]} 30. Qg4 {[%clk 0:01:53]}  axb3 {[%clk 0:00:43]} 31. axb3 {[%clk 0:01:53]}  Qg5 {[%clk 0:00:37]} 32. Qe6 {[%clk 0:01:48]}  Rf6 {[%clk 0:00:32]} 33. Qd7 {[%clk 0:01:48]}  Rxf2 {[%clk 0:00:26]} 34. Rxf2 {[%clk 0:01:34]}  Qxe3+ {[%clk 0:00:23]} 35. Nd2 {[%clk 0:01:33]}  Qxf2 {[%clk 0:00:22]} 36. Rf1 {[%clk 0:01:26]}  Qxg3 {[%clk 0:00:21]} 37. Qxc6 {[%clk 0:01:27]}  Ra2 {[%clk 0:00:14]} 38. Qxb5 {[%clk 0:01:16]}  e3 {[%clk 0:00:14]} 39. Nb1 {[%clk 0:00:55]}  Qg5 {[%clk 0:00:11]} 40. Qe2 {[%clk 0:00:53]}  Nf6 {[%clk 0:00:10]} 41. c6 {[%clk 0:00:51]}  Bd6 {[%clk 0:00:08]} 42. Rf3 {[%clk 0:00:47]}  Ne4 {[%clk 0:00:07]} 43. Kc2 {[%clk 0:00:30]}  Kh7 {[%clk 0:00:04]} 44. Qxe3 {[%clk 0:00:28]}  Qg2+ {[%clk 0:00:02]} 45. Nd2 {[%clk 0:00:27]} 1-0


[Site "https://www.chess.com"]

[Event "Titled Tuesday Blitz March 28 Late 2023"]
[White "Djordjevic, Dejan N"]
[Black "Bolanos, Fernando"]
[WhiteFideId "913316"]
[BlackFideId "3304094"]
[WhiteElo "2261"]
[BlackElo "2166"]
[Result "1-0"]
[Round "03"]
[TimeControl "180+2"]
[Date "2023.03.28"]
[WhiteClock "0:02:09"]
[BlackClock "0:01:36"]

1. e4 {[%clk 0:02:55]}  c5 {[%clk 0:02:33]} 2. Nc3 {[%clk 0:02:53]}  Nc6 {[%clk 0:02:32]} 3. g3 {[%clk 0:02:52]}  e5 {[%clk 0:02:31]} 4. Bg2 {[%clk 0:02:53]}  g6 {[%clk 0:02:32]} 5. Nge2 {[%clk 0:02:53]}  Bg7 {[%clk 0:02:32]} 6. O-O {[%clk 0:02:53]}  Nge7 {[%clk 0:02:33]} 7. h3 {[%clk 0:02:54]}  O-O {[%clk 0:02:34]} 8. d3 {[%clk 0:02:54]}  Rb8 {[%clk 0:02:34]} 9. f4 {[%clk 0:02:53]}  d6 {[%clk 0:02:34]} 10. Be3 {[%clk 0:02:52]}  Nd4 {[%clk 0:02:31]} 11. Qd2 {[%clk 0:02:51]}  b5 {[%clk 0:02:31]} 12. g4 {[%clk 0:02:50]}  b4 {[%clk 0:02:30]} 13. Nd1 {[%clk 0:02:50]}  exf4 {[%clk 0:02:29]} 14. Nxf4 {[%clk 0:02:49]}  a5 {[%clk 0:02:28]} 15. c3 {[%clk 0:02:48]}  Ne6 {[%clk 0:02:28]} 16. Nd5 {[%clk 0:02:42]}  Nxd5 {[%clk 0:02:28]} 17. exd5 {[%clk 0:02:42]}  Nc7 {[%clk 0:02:25]} 18. Bg5 {[%clk 0:02:35]}  Qe8 {[%clk 0:02:23]} 19. Re1 {[%clk 0:02:32]}  Qa4 {[%clk 0:02:14]} 20. Be7 {[%clk 0:02:21]}  Re8 {[%clk 0:01:36]} 21. Bxd6 {[%clk 0:02:20]}  Rxe1+ {[%clk 0:01:36]} 22. Qxe1 {[%clk 0:02:20]}  Qd7 {[%clk 0:01:36]} 23. Bxc5 {[%clk 0:02:11]}  Nxd5 {[%clk 0:01:36]} 24. Bxd5 {[%clk 0:02:09]}  Qxd5 {[%clk 0:01:37]} 25. Qe8+ {[%clk 0:02:09]}  Bf8 {[%clk 0:01:36]} 26. Qxf8# {[%clk 0:02:09]} 1-0


[Site "https://www.chess.com"]

[Event "Titled Tuesday Blitz March 28 Late 2023"]
[White "Van Dael, Siem"]
[Black "Eliteplayer3"]
[WhiteFideId "1049771"]
[WhiteElo "2336"]
[BlackElo "2119"]
[Result "1-0"]
[Round "03"]
[TimeControl "180+2"]
[Date "2023.03.28"]
[WhiteClock "0:00:26"]
[BlackClock "0:00:39"]

1. e4 {[%clk 0:02:56]}  c5 {[%clk 0:02:59]} 2. Nf3 {[%clk 0:02:56]}  Nc6 {[%clk 0:02:59]} 3. d4 {[%clk 0:02:56]}  cxd4 {[%clk 0:02:59]} 4. Nxd4 {[%clk 0:02:56]}  Nf6 {[%clk 0:03:00]} 5. Nc3 {[%clk 0:02:55]}  d6 {[%clk 0:03:00]} 6. Bg5 {[%clk 0:02:55]}  g6 {[%clk 0:03:00]} 7. Bxf6 {[%clk 0:02:55]}  exf6 {[%clk 0:03:01]} 8. Bb5 {[%clk 0:02:55]}  Bd7 {[%clk 0:03:00]} 9. Bc4 {[%clk 0:02:56]}  Be7 {[%clk 0:02:59]} 10. O-O {[%clk 0:02:50]}  O-O {[%clk 0:02:59]} 11. Nd5 {[%clk 0:02:39]}  Kg7 {[%clk 0:02:58]} 12. Re1 {[%clk 0:02:37]}  Re8 {[%clk 0:02:57]} 13. Nxe7 {[%clk 0:02:36]}  Rxe7 {[%clk 0:02:57]} 14. Nb5 {[%clk 0:02:34]}  Ne5 {[%clk 0:02:55]} 15. Nxd6 {[%clk 0:02:34]}  Qb6 {[%clk 0:02:45]} 16. Bb3 {[%clk 0:02:11]}  Rd8 {[%clk 0:02:41]} 17. Nc4 {[%clk 0:01:53]}  Nxc4 {[%clk 0:02:38]} 18. Bxc4 {[%clk 0:01:53]}  Bc6 {[%clk 0:02:26]} 19. Qc1 {[%clk 0:01:25]}  Rxe4 {[%clk 0:02:18]} 20. Bb3 {[%clk 0:01:13]}  Rg4 {[%clk 0:02:10]} 21. g3 {[%clk 0:01:07]}  h5 {[%clk 0:02:01]} 22. Qe3 {[%clk 0:00:55]}  Qxe3 {[%clk 0:01:45]} 23. Rxe3 {[%clk 0:00:55]}  Rd2 {[%clk 0:01:44]} 24. Rae1 {[%clk 0:00:47]}  Rgd4 {[%clk 0:01:35]} 25. Re7 {[%clk 0:00:46]}  Rd7 {[%clk 0:01:35]} 26. Rxd7 {[%clk 0:00:39]}  Rxd7 {[%clk 0:01:36]} 27. Kf1 {[%clk 0:00:31]}  a5 {[%clk 0:01:35]} 28. a4 {[%clk 0:00:24]}  Rd2 {[%clk 0:01:26]} 29. Re2 {[%clk 0:00:21]}  Rd1+ {[%clk 0:01:25]} 30. Re1 {[%clk 0:00:21]}  Bg2+ {[%clk 0:01:25]} 31. Ke2 {[%clk 0:00:20]}  Rxe1+ {[%clk 0:01:26]} 32. Kxe1 {[%clk 0:00:20]}  Bc6 {[%clk 0:01:24]} 33. Kd2 {[%clk 0:00:20]}  f5 {[%clk 0:01:18]} 34. Ke3 {[%clk 0:00:20]}  g5 {[%clk 0:01:17]} 35. Kd4 {[%clk 0:00:20]}  f4 {[%clk 0:01:13]} 36. gxf4 {[%clk 0:00:19]}  gxf4 {[%clk 0:01:11]} 37. Ke5 {[%clk 0:00:10]}  f3 {[%clk 0:01:09]} 38. h4 {[%clk 0:00:09]}  Kg6 {[%clk 0:01:06]} 39. c3 {[%clk 0:00:09]}  f6+ {[%clk 0:00:59]} 40. Ke6 {[%clk 0:00:08]}  Be8 {[%clk 0:00:57]} 41. Bc2+ {[%clk 0:00:08]}  Kg7 {[%clk 0:00:55]} 42. b4 {[%clk 0:00:08]}  axb4 {[%clk 0:00:54]} 43. cxb4 {[%clk 0:00:08]}  f5 {[%clk 0:00:52]} 44. a5 {[%clk 0:00:08]}  Bb5 {[%clk 0:00:42]} 45. Kxf5 {[%clk 0:00:07]}  Be8 {[%clk 0:00:41]} 46. Kg5 {[%clk 0:00:07]}  Kf7 {[%clk 0:00:31]} 47. Be4 {[%clk 0:00:07]}  Ke6 {[%clk 0:00:31]} 48. Bxb7 {[%clk 0:00:07]}  Kd6 {[%clk 0:00:28]} 49. Bxf3 {[%clk 0:00:07]}  Kc7 {[%clk 0:00:27]} 50. Bxh5 {[%clk 0:00:08]}  Bb5 {[%clk 0:00:25]} 51. Bg6 {[%clk 0:00:08]}  Kc6 {[%clk 0:00:23]} 52. h5 {[%clk 0:00:09]}  Ba6 {[%clk 0:00:23]} 53. h6 {[%clk 0:00:09]}  Kb5 {[%clk 0:00:24]} 54. Bd3+ {[%clk 0:00:09]}  Kxb4 {[%clk 0:00:25]} 55. Bxa6 {[%clk 0:00:10]}  Kxa5 {[%clk 0:00:25]} 56. Be2 {[%clk 0:00:10]}  Kb4 {[%clk 0:00:25]} 57. f4 {[%clk 0:00:11]}  Kc5 {[%clk 0:00:26]} 58. Bg4 {[%clk 0:00:12]}  Kd4 {[%clk 0:00:27]} 59. h7 {[%clk 0:00:12]}  Ke3 {[%clk 0:00:28]} 60. h8=Q {[%clk 0:00:13]}  Kf2 {[%clk 0:00:28]} 61. Qe5 {[%clk 0:00:13]}  Kg3 {[%clk 0:00:29]} 62. Qe3+ {[%clk 0:00:13]}  Kg2 {[%clk 0:00:29]} 63. Kh4 {[%clk 0:00:14]}  Kh1 {[%clk 0:00:30]} 64. Qe2 {[%clk 0:00:14]}  Kg1 {[%clk 0:00:30]} 65. Kg5 {[%clk 0:00:15]}  Kh1 {[%clk 0:00:30]} 66. Kg6 {[%clk 0:00:15]}  Kg1 {[%clk 0:00:31]} 67. Kg7 {[%clk 0:00:16]}  Kh1 {[%clk 0:00:31]} 68. Kg8 {[%clk 0:00:17]}  Kg1 {[%clk 0:00:32]} 69. Kf8 {[%clk 0:00:18]}  Kh1 {[%clk 0:00:33]} 70. Kf7 {[%clk 0:00:19]}  Kg1 {[%clk 0:00:34]} 71. Kf6 {[%clk 0:00:20]}  Kh1 {[%clk 0:00:35]} 72. Kf5 {[%clk 0:00:21]}  Kg1 {[%clk 0:00:35]} 73. Ke5 {[%clk 0:00:22]}  Kh1 {[%clk 0:00:36]} 74. Ke6 {[%clk 0:00:23]}  Kg1 {[%clk 0:00:36]} 75. Ke7 {[%clk 0:00:24]}  Kh1 {[%clk 0:00:37]} 76. Ke8 {[%clk 0:00:24]}  Kg1 {[%clk 0:00:38]} 77. Kd7 {[%clk 0:00:25]}  Kh1 {[%clk 0:00:38]} 78. Bf3+ {[%clk 0:00:25]}  Kg1 {[%clk 0:00:39]} 79. Qg2# {[%clk 0:00:26]} 1-0


[Site "https://www.chess.com"]

[Event "Titled Tuesday Blitz March 28 Late 2023"]
[White "Dominguez Rincon, Miller Duvan"]
[Black "Jorajuria Mendoza, Algol"]
[WhiteFideId "4406583"]
[BlackFideId "5128897"]
[WhiteElo "2005"]
[BlackElo "2076"]
[Result "0-1"]
[Round "03"]
[TimeControl "180+2"]
[Date "2023.03.28"]
[WhiteClock "0:00:01"]
[BlackClock "0:00:02"]

1. e4 {[%clk 0:02:59]}  c5 {[%clk 0:03:00]} 2. Nf3 {[%clk 0:02:56]}  Nc6 {[%clk 0:03:00]} 3. Bb5 {[%clk 0:02:54]}  e6 {[%clk 0:03:00]} 4. O-O {[%clk 0:02:51]}  Nge7 {[%clk 0:02:59]} 5. Re1 {[%clk 0:02:50]}  a6 {[%clk 0:02:58]} 6. Bf1 {[%clk 0:02:51]}  Ng6 {[%clk 0:02:49]} 7. c3 {[%clk 0:02:44]}  Be7 {[%clk 0:02:23]} 8. d4 {[%clk 0:02:32]}  cxd4 {[%clk 0:02:24]} 9. cxd4 {[%clk 0:02:32]}  d5 {[%clk 0:02:25]} 10. e5 {[%clk 0:02:23]}  O-O {[%clk 0:01:45]} 11. Nc3 {[%clk 0:02:22]}  f6 {[%clk 0:01:37]} 12. exf6 {[%clk 0:02:13]}  Bxf6 {[%clk 0:01:36]} 13. Be3 {[%clk 0:02:04]}  Kh8 {[%clk 0:01:14]} 14. Rc1 {[%clk 0:01:56]}  Qd6 {[%clk 0:01:01]} 15. g3 {[%clk 0:01:18]}  Bd7 {[%clk 0:01:00]} 16. Bg2 {[%clk 0:01:17]}  Rad8 {[%clk 0:00:55]} 17. Ne2 {[%clk 0:00:53]}  e5 {[%clk 0:00:52]} 18. dxe5 {[%clk 0:00:50]}  Ngxe5 {[%clk 0:00:52]} 19. Nxe5 {[%clk 0:00:47]}  Bxe5 {[%clk 0:00:49]} 20. Qxd5 {[%clk 0:00:42]}  Qf6 {[%clk 0:00:45]} 21. Qb3 {[%clk 0:00:21]}  Bxb2 {[%clk 0:00:34]} 22. Rb1 {[%clk 0:00:16]}  Bc3 {[%clk 0:00:21]} 23. Qxc3 {[%clk 0:00:14]}  Ne5 {[%clk 0:00:19]} 24. Bd4 {[%clk 0:00:12]}  Rc8 {[%clk 0:00:17]} 25. Bxe5 {[%clk 0:00:10]}  Qxf2+ {[%clk 0:00:17]} 26. Kh1 {[%clk 0:00:09]}  Rxc3 {[%clk 0:00:18]} 27. Bxc3 {[%clk 0:00:08]}  Qc5 {[%clk 0:00:13]} 28. Bd4 {[%clk 0:00:08]}  Qd6 {[%clk 0:00:11]} 29. Rbd1 {[%clk 0:00:07]}  Qg6 {[%clk 0:00:08]} 30. Nf4 {[%clk 0:00:06]}  Qg4 {[%clk 0:00:07]} 31. Rf1 {[%clk 0:00:03]}  Kg8 {[%clk 0:00:05]} 32. Bd5+ {[%clk 0:00:02]}  Kh8 {[%clk 0:00:04]} 33. Ng6+ {[%clk 0:00:02]}  hxg6 {[%clk 0:00:05]} 34. Rxf8+ {[%clk 0:00:02]}  Kh7 {[%clk 0:00:03]} 35. Bg8+ {[%clk 0:00:03]}  Kh6 {[%clk 0:00:02]} 36. Be3+ {[%clk 0:00:03]}  g5 {[%clk 0:00:02]} 37. Bd5 {[%clk 0:00:01]}  Qxd1+ {[%clk 0:00:02]} 38. Kg2 {[%clk 0:00:01]}  Qxd5+ {[%clk 0:00:02]} 0-1


[Site "https://www.chess.com"]

[Event "Titled Tuesday Blitz March 28 Late 2023"]
[White "Narva, Triin"]
[Black "Sliwicki, Damian"]
[WhiteFideId "4502680"]
[BlackFideId "1127128"]
[WhiteElo "1944"]
[BlackElo "2030"]
[Result "0-1"]
[Round "03"]
[TimeControl "180+2"]
[Date "2023.03.28"]
[WhiteClock "0:00:01"]
[BlackClock "0:00:07"]

1. e4 {[%clk 0:02:59]}  d5 {[%clk 0:02:51]} 2. exd5 {[%clk 0:02:58]}  Qxd5 {[%clk 0:02:50]} 3. Nc3 {[%clk 0:02:58]}  Qa5 {[%clk 0:02:48]} 4. Bc4 {[%clk 0:02:57]}  Nf6 {[%clk 0:02:48]} 5. d3 {[%clk 0:02:57]}  Bg4 {[%clk 0:02:41]} 6. f3 {[%clk 0:02:57]}  Bf5 {[%clk 0:02:35]} 7. g4 {[%clk 0:02:43]}  Bg6 {[%clk 0:02:29]} 8. f4 {[%clk 0:02:37]}  e6 {[%clk 0:02:12]} 9. h3 {[%clk 0:02:12]}  Qb6 {[%clk 0:01:56]} 10. Nf3 {[%clk 0:02:08]}  Bc5 {[%clk 0:01:42]} 11. d4 {[%clk 0:02:05]}  Bb4 {[%clk 0:01:41]} 12. O-O {[%clk 0:02:03]}  Ne4 {[%clk 0:01:28]} 13. Nxe4 {[%clk 0:01:59]}  Bxe4 {[%clk 0:01:29]} 14. c3 {[%clk 0:01:58]}  Bd6 {[%clk 0:01:24]} 15. Ng5 {[%clk 0:01:37]}  Bc6 {[%clk 0:01:17]} 16. Qe2 {[%clk 0:01:26]}  Nd7 {[%clk 0:01:06]} 17. Nxf7 {[%clk 0:01:08]}  O-O {[%clk 0:00:51]} 18. Nxd6 {[%clk 0:01:07]}  cxd6 {[%clk 0:00:50]} 19. Qxe6+ {[%clk 0:01:06]}  Kh8 {[%clk 0:00:50]} 20. Qxd6 {[%clk 0:00:57]}  Rae8 {[%clk 0:00:42]} 21. g5 {[%clk 0:00:26]}  Qa5 {[%clk 0:00:33]} 22. Bd3 {[%clk 0:00:18]}  Nb6 {[%clk 0:00:26]} 23. b4 {[%clk 0:00:17]}  Qa4 {[%clk 0:00:20]} 24. Bd2 {[%clk 0:00:13]}  Nd5 {[%clk 0:00:15]} 25. Rae1 {[%clk 0:00:10]}  Qxa2 {[%clk 0:00:15]} 26. Rxe8 {[%clk 0:00:09]}  Rxe8 {[%clk 0:00:16]} 27. b5 {[%clk 0:00:04]}  Qxd2 {[%clk 0:00:11]} 28. bxc6 {[%clk 0:00:04]}  Ne3 {[%clk 0:00:10]} 29. Be4 {[%clk 0:00:02]}  bxc6 {[%clk 0:00:07]} 30. Qd7 {[%clk 0:00:01]}  Rg8 {[%clk 0:00:07]} 0-1


[Site "https://www.chess.com"]

[Event "Titled Tuesday Blitz March 28 Late 2023"]
[White "Torres Boch, Jose Francisco"]
[Black "Sanchez, Robert"]
[WhiteFideId "2278383"]
[BlackFideId "2034360"]
[WhiteElo "2073"]
[BlackElo "2095"]
[Result "1-0"]
[Round "03"]
[TimeControl "180+2"]
[Date "2023.03.28"]
[WhiteClock "0:00:17"]
[BlackClock "0:00:48"]

1. e4 {[%clk 0:02:22]}  e6 {[%clk 0:02:23]} 2. d4 {[%clk 0:02:19]}  d5 {[%clk 0:02:22]} 3. Nc3 {[%clk 0:02:20]}  Nf6 {[%clk 0:02:22]} 4. e5 {[%clk 0:02:20]}  Ne4 {[%clk 0:02:23]} 5. Nxe4 {[%clk 0:02:17]}  dxe4 {[%clk 0:02:24]} 6. Ne2 {[%clk 0:02:05]}  c5 {[%clk 0:02:16]} 7. g3 {[%clk 0:02:04]}  Nc6 {[%clk 0:02:13]} 8. Be3 {[%clk 0:01:52]}  cxd4 {[%clk 0:02:11]} 9. Bxd4 {[%clk 0:01:50]}  Nxd4 {[%clk 0:02:10]} 10. Qxd4 {[%clk 0:01:48]}  Qa5+ {[%clk 0:02:06]} 11. c3 {[%clk 0:01:44]}  Bd7 {[%clk 0:02:05]} 12. Bg2 {[%clk 0:01:42]}  Bc5 {[%clk 0:02:05]} 13. Qd2 {[%clk 0:01:37]}  e3 {[%clk 0:02:02]} 14. fxe3 {[%clk 0:01:35]}  O-O-O {[%clk 0:02:02]} 15. Nd4 {[%clk 0:01:34]}  Qc7 {[%clk 0:01:52]} 16. O-O {[%clk 0:01:28]}  Rhf8 {[%clk 0:01:45]} 17. b4 {[%clk 0:01:11]}  Be7 {[%clk 0:01:44]} 18. a4 {[%clk 0:01:03]}  Qxe5 {[%clk 0:01:42]} 19. a5 {[%clk 0:01:01]}  a6 {[%clk 0:01:38]} 20. Qe2 {[%clk 0:00:54]}  Bg5 {[%clk 0:01:33]} 21. Rae1 {[%clk 0:00:50]}  Bb5 {[%clk 0:01:29]} 22. Qf3 {[%clk 0:00:49]}  Rd7 {[%clk 0:01:19]} 23. Kh1 {[%clk 0:00:22]}  Bxf1 {[%clk 0:01:18]} 24. Bxf1 {[%clk 0:00:21]}  Qd5 {[%clk 0:01:12]} 25. e4 {[%clk 0:00:20]}  Qe5 {[%clk 0:01:06]} 26. b5 {[%clk 0:00:20]}  Bd2 {[%clk 0:01:01]} 27. Rd1 {[%clk 0:00:19]}  Qg5 {[%clk 0:00:52]} 28. bxa6 {[%clk 0:00:19]}  Kb8 {[%clk 0:00:50]} 29. axb7 {[%clk 0:00:17]}  Qxg3 {[%clk 0:00:48]} 1-0


[Site "https://www.chess.com"]

[Event "Titled Tuesday Blitz March 28 Late 2023"]
[White "Manu_ChessExcelsior"]
[Black "Gerbelli Neto, Eduardo"]
[BlackFideId "2103281"]
[WhiteElo "2089"]
[BlackElo "2178"]
[Result "1-0"]
[Round "03"]
[TimeControl "180+2"]
[Date "2023.03.28"]
[WhiteClock "0:00:46"]
[BlackClock "0:00:27"]

1. e4 {[%clk 0:02:49]}  e5 {[%clk 0:02:59]} 2. Nf3 {[%clk 0:02:48]}  Nc6 {[%clk 0:02:59]} 3. Bc4 {[%clk 0:02:49]}  Nf6 {[%clk 0:02:59]} 4. Ng5 {[%clk 0:02:49]}  d5 {[%clk 0:02:59]} 5. exd5 {[%clk 0:02:50]}  Nd4 {[%clk 0:03:00]} 6. c3 {[%clk 0:02:50]}  b5 {[%clk 0:03:00]} 7. Bf1 {[%clk 0:02:50]}  Nxd5 {[%clk 0:03:00]} 8. cxd4 {[%clk 0:02:51]}  Qxg5 {[%clk 0:02:59]} 9. Bxb5+ {[%clk 0:02:51]}  Kd8 {[%clk 0:02:59]} 10. Qf3 {[%clk 0:02:47]}  Bb7 {[%clk 0:02:39]} 11. dxe5 {[%clk 0:02:40]}  Qxe5+ {[%clk 0:02:25]} 12. Kd1 {[%clk 0:02:32]}  Bd6 {[%clk 0:02:20]} 13. Re1 {[%clk 0:02:30]}  Qf6 {[%clk 0:02:12]} 14. Qxf6+ {[%clk 0:01:48]}  Nxf6 {[%clk 0:02:10]} 15. f3 {[%clk 0:01:48]}  Rb8 {[%clk 0:02:06]} 16. Nc3 {[%clk 0:01:47]}  Bxh2 {[%clk 0:01:53]} 17. d4 {[%clk 0:01:45]}  Bg3 {[%clk 0:01:48]} 18. Re2 {[%clk 0:01:44]}  Nd5 {[%clk 0:01:41]} 19. Ne4 {[%clk 0:01:34]}  Nf4 {[%clk 0:01:32]} 20. Nxg3 {[%clk 0:01:30]}  Nxe2 {[%clk 0:01:31]} 21. Bxe2 {[%clk 0:01:27]}  Bd5 {[%clk 0:01:18]} 22. b3 {[%clk 0:01:20]}  Kd7 {[%clk 0:01:14]} 23. Ba3 {[%clk 0:01:14]}  h5 {[%clk 0:01:12]} 24. Kd2 {[%clk 0:01:04]}  g6 {[%clk 0:01:10]} 25. Ne4 {[%clk 0:01:04]}  c6 {[%clk 0:00:46]} 26. Nf6+ {[%clk 0:01:04]}  Ke6 {[%clk 0:00:47]} 27. Nxd5 {[%clk 0:01:03]}  cxd5 {[%clk 0:00:48]} 28. Re1 {[%clk 0:01:00]}  Kf6 {[%clk 0:00:42]} 29. Bd3 {[%clk 0:00:57]}  Rhe8 {[%clk 0:00:41]} 30. Rc1 {[%clk 0:00:52]}  Rbc8 {[%clk 0:00:34]} 31. Rc5 {[%clk 0:00:51]}  Rxc5 {[%clk 0:00:32]} 32. dxc5 {[%clk 0:00:52]}  Ke6 {[%clk 0:00:30]} 33. b4 {[%clk 0:00:52]}  g5 {[%clk 0:00:28]} 34. b5 {[%clk 0:00:52]}  h4 {[%clk 0:00:28]} 35. b6 {[%clk 0:00:48]}  axb6 {[%clk 0:00:27]} 36. cxb6 {[%clk 0:00:49]}  Rb8 {[%clk 0:00:27]} 37. Bc5 {[%clk 0:00:48]}  f5 {[%clk 0:00:28]} 38. a4 {[%clk 0:00:48]}  g4 {[%clk 0:00:28]} 39. a5 {[%clk 0:00:47]}  h3 {[%clk 0:00:27]} 40. gxh3 {[%clk 0:00:47]}  gxh3 {[%clk 0:00:27]} 41. Bg1 {[%clk 0:00:46]} 1-0


[Site "https://www.chess.com"]

[Event "Titled Tuesday Blitz March 28 Late 2023"]
[White "Fernandez Siles, Luis"]
[Black "Toma, Katarzyna"]
[WhiteFideId "2209420"]
[BlackFideId "1119907"]
[WhiteElo "2186"]
[BlackElo "2149"]
[Result "0-1"]
[Round "03"]
[TimeControl "180+2"]
[Date "2023.03.28"]
[WhiteClock "0:00:17"]
[BlackClock "0:00:09"]

1. d4 {[%clk 0:02:58]}  d5 {[%clk 0:02:58]} 2. c4 {[%clk 0:02:57]}  e6 {[%clk 0:02:53]} 3. Nc3 {[%clk 0:02:57]}  Nf6 {[%clk 0:02:52]} 4. cxd5 {[%clk 0:02:57]}  exd5 {[%clk 0:02:52]} 5. Bg5 {[%clk 0:02:57]}  c6 {[%clk 0:02:50]} 6. e3 {[%clk 0:02:57]}  Be7 {[%clk 0:02:41]} 7. Qc2 {[%clk 0:02:56]}  Nbd7 {[%clk 0:02:40]} 8. Bd3 {[%clk 0:02:56]}  Nf8 {[%clk 0:02:40]} 9. Nf3 {[%clk 0:02:51]}  Ne6 {[%clk 0:02:37]} 10. Bh4 {[%clk 0:02:47]}  h6 {[%clk 0:02:36]} 11. O-O {[%clk 0:02:44]}  g5 {[%clk 0:02:29]} 12. Bg3 {[%clk 0:02:42]}  h5 {[%clk 0:02:29]} 13. Be5 {[%clk 0:02:33]}  g4 {[%clk 0:02:14]} 14. Nd2 {[%clk 0:02:26]}  Ng5 {[%clk 0:02:05]} 15. e4 {[%clk 0:02:22]}  Rg8 {[%clk 0:01:50]} 16. Bxf6 {[%clk 0:02:08]}  Bxf6 {[%clk 0:01:47]} 17. exd5 {[%clk 0:02:05]}  cxd5 {[%clk 0:01:42]} 18. Bb5+ {[%clk 0:01:33]}  Kf8 {[%clk 0:01:40]} 19. Rfe1 {[%clk 0:01:23]}  Be6 {[%clk 0:01:27]} 20. Qd3 {[%clk 0:00:40]}  h4 {[%clk 0:01:22]} 21. Nf1 {[%clk 0:00:39]}  h3 {[%clk 0:01:11]} 22. Ng3 {[%clk 0:00:32]}  hxg2 {[%clk 0:01:08]} 23. Re3 {[%clk 0:00:31]}  Nh3+ {[%clk 0:00:51]} 24. Kxg2 {[%clk 0:00:28]}  Nf4+ {[%clk 0:00:50]} 25. Kg1 {[%clk 0:00:28]}  Nxd3 {[%clk 0:00:50]} 26. Bxd3 {[%clk 0:00:29]}  Rh8 {[%clk 0:00:42]} 27. Rae1 {[%clk 0:00:26]}  Bxd4 {[%clk 0:00:40]} 28. R3e2 {[%clk 0:00:24]}  Qh4 {[%clk 0:00:36]} 29. Nf1 {[%clk 0:00:23]}  Qh3 {[%clk 0:00:20]} 30. Bc2 {[%clk 0:00:20]}  Rc8 {[%clk 0:00:18]} 31. Re3 {[%clk 0:00:16]}  Bxe3 {[%clk 0:00:17]} 32. Rxe3 {[%clk 0:00:17]}  Qh4 {[%clk 0:00:15]} 33. Rd3 {[%clk 0:00:17]}  Rd8 {[%clk 0:00:13]} 34. Ne2 {[%clk 0:00:17]}  Rc8 {[%clk 0:00:12]} 35. Neg3 {[%clk 0:00:18]}  Rxc2 {[%clk 0:00:11]} 36. Ne3 {[%clk 0:00:17]}  Qxh2+ {[%clk 0:00:10]} 37. Kf1 {[%clk 0:00:17]}  Qxf2# {[%clk 0:00:09]} 0-1


[Site "https://www.chess.com"]